[Event "November 21 Early 2023"]
[Site "https://www.chess.com"]
[Date "2023.11.21"]
[Round "7"]
[White "Rohith Krishna S"]
[Black "Le, Quang Liem"]
[Result "1/2-1/2"]
[Board "3"]
[TimeControl "180+1"]
[WhiteFideId "46617051"]
[BlackFideId "12401137"]
[WhiteElo "2394"]
[BlackElo "2665"]
[WhiteTeam "IND"]
[BlackTeam "VIE"]
[WhiteClock "0:00:17"]
[BlackClock "0:00:14"]

1. Nf3 {[%clk 0:03:00]}  d5 {[%clk 0:02:57]} 2. g3 {[%clk 0:03:01]}  g6 {[%clk 0:02:57]} 3. Bg2 {[%clk 0:03:01]}  Bg7 {[%clk 0:02:57]} 4. O-O {[%clk 0:03:01]}  e5 {[%clk 0:02:57]} 5. d3 {[%clk 0:03:01]}  Ne7 {[%clk 0:02:53]} 6. c4 {[%clk 0:03:01]}  O-O {[%clk 0:02:44]} 7. Nc3 {[%clk 0:02:51]}  d4 {[%clk 0:02:44]} 8. Na4 {[%clk 0:02:49]}  a5 {[%clk 0:02:38]} 9. Rb1 {[%clk 0:02:48]}  Na6 {[%clk 0:02:29]} 10. a3 {[%clk 0:02:48]}  c6 {[%clk 0:02:17]} 11. b4 {[%clk 0:02:40]}  axb4 {[%clk 0:02:15]} 12. axb4 {[%clk 0:02:40]}  b5 {[%clk 0:02:16]} 13. cxb5 {[%clk 0:02:41]}  cxb5 {[%clk 0:02:17]} 14. Nc5 {[%clk 0:02:41]}  Nd5 {[%clk 0:02:08]} 15. Bd2 {[%clk 0:02:39]}  Qd6 {[%clk 0:01:48]} 16. Ng5 {[%clk 0:02:12]}  Nac7 {[%clk 0:01:32]} 17. Qb3 {[%clk 0:02:07]}  h6 {[%clk 0:01:29]} 18. Nge4 {[%clk 0:02:06]}  Qe7 {[%clk 0:01:29]} 19. e3 {[%clk 0:01:48]}  dxe3 {[%clk 0:01:24]} 20. fxe3 {[%clk 0:01:47]}  Rd8 {[%clk 0:01:19]} 21. Nc3 {[%clk 0:01:45]}  Nxc3 {[%clk 0:01:05]} 22. Bxc3 {[%clk 0:01:46]}  Rb8 {[%clk 0:01:04]} 23. Rf2 {[%clk 0:01:36]}  Be6 {[%clk 0:01:02]} 24. Qb2 {[%clk 0:01:27]}  Nd5 {[%clk 0:00:56]} 25. Bxe5 {[%clk 0:01:25]}  Bxe5 {[%clk 0:00:52]} 26. Qxe5 {[%clk 0:01:26]}  Qg5 {[%clk 0:00:49]} 27. Qxg5 {[%clk 0:01:18]}  hxg5 {[%clk 0:00:50]} 28. Nxe6 {[%clk 0:01:18]}  fxe6 {[%clk 0:00:51]} 29. Bxd5 {[%clk 0:01:18]}  Rxd5 {[%clk 0:00:48]} 30. Rf6 {[%clk 0:01:15]}  Kg7 {[%clk 0:00:42]} 31. Rxe6 {[%clk 0:01:15]}  Rxd3 {[%clk 0:00:42]} 32. Rc1 {[%clk 0:01:12]}  g4 {[%clk 0:00:22]} 33. Re4 {[%clk 0:01:10]}  Rf8 {[%clk 0:00:20]} 34. Rc7+ {[%clk 0:01:02]}  Kh6 {[%clk 0:00:18]} 35. Rxg4 {[%clk 0:01:01]}  Rxe3 {[%clk 0:00:18]} 36. Rc6 {[%clk 0:01:01]}  Rg8 {[%clk 0:00:17]} 37. Rb6 {[%clk 0:00:59]}  Re2 {[%clk 0:00:18]} 38. Rh4+ {[%clk 0:00:52]}  Kg7 {[%clk 0:00:17]} 39. Rb7+ {[%clk 0:00:52]}  Kf6 {[%clk 0:00:17]} 40. Rf4+ {[%clk 0:00:53]}  Ke6 {[%clk 0:00:17]} 41. Rxb5 {[%clk 0:00:53]}  Ra8 {[%clk 0:00:15]} 42. Rb6+ {[%clk 0:00:53]}  Ke5 {[%clk 0:00:12]} 43. Rxg6 {[%clk 0:00:48]}  Raa2 {[%clk 0:00:12]} 44. Rg5+ {[%clk 0:00:28]}  Ke6 {[%clk 0:00:12]} 45. Rg6+ {[%clk 0:00:28]}  Ke5 {[%clk 0:00:12]} 46. h4 {[%clk 0:00:25]}  Rg2+ {[%clk 0:00:11]} 47. Kf1 {[%clk 0:00:26]}  Rh2 {[%clk 0:00:12]} 48. Rg5+ {[%clk 0:00:21]}  Ke6 {[%clk 0:00:12]} 49. Rg6+ {[%clk 0:00:22]}  Ke5 {[%clk 0:00:12]} 50. Kg1 {[%clk 0:00:17]}  Rag2+ {[%clk 0:00:11]} 51. Kf1 {[%clk 0:00:17]}  Rb2 {[%clk 0:00:12]} 52. Rg5+ {[%clk 0:00:15]}  Ke6 {[%clk 0:00:13]} 53. Rg6+ {[%clk 0:00:16]}  Ke5 {[%clk 0:00:13]} 54. Rg5+ {[%clk 0:00:16]}  Ke6 {[%clk 0:00:13]} 55. Rg6+ {[%clk 0:00:17]}  Ke5 {[%clk 0:00:14]} 1/2-1/2

[Event "November 21 Early 2023"]
[Site "https://www.chess.com"]
[Date "2023.11.21"]
[Round "7"]
[White "Rustemov, Alexander"]
[Black "Erigaisi Arjun"]
[Result "0-1"]
[Board "6"]
[TimeControl "180+1"]
[WhiteFideId "4119002"]
[BlackFideId "35009192"]
[WhiteElo "2894"]
[BlackElo "2729"]
[WhiteTeam "RUS"]
[BlackTeam "IND"]
[WhiteClock "0:00:00"]
[BlackClock "0:00:13"]

1. d4 {[%clk 0:03:00]}  e6 {[%clk 0:03:00]} 2. c4 {[%clk 0:03:01]}  c5 {[%clk 0:03:00]} 3. d5 {[%clk 0:03:00]}  exd5 {[%clk 0:03:01]} 4. cxd5 {[%clk 0:03:01]}  d6 {[%clk 0:03:02]} 5. Nc3 {[%clk 0:03:02]}  a6 {[%clk 0:03:02]} 6. a4 {[%clk 0:02:59]}  g6 {[%clk 0:03:02]} 7. e4 {[%clk 0:02:59]}  Bg7 {[%clk 0:03:03]} 8. h3 {[%clk 0:02:58]}  Ne7 {[%clk 0:03:02]} 9. Nf3 {[%clk 0:02:54]}  O-O {[%clk 0:03:02]} 10. Bd3 {[%clk 0:02:54]}  f5 {[%clk 0:03:00]} 11. exf5 {[%clk 0:02:40]}  Nxf5 {[%clk 0:02:48]} 12. O-O {[%clk 0:02:39]}  Nd7 {[%clk 0:02:47]} 13. Bg5 {[%clk 0:02:31]}  Qb6 {[%clk 0:02:42]} 14. Qd2 {[%clk 0:02:30]}  Ne5 {[%clk 0:02:27]} 15. Nxe5 {[%clk 0:02:28]}  Bxe5 {[%clk 0:02:28]} 16. Rae1 {[%clk 0:02:18]}  Nd4 {[%clk 0:02:20]} 17. Rxe5 {[%clk 0:02:12]}  dxe5 {[%clk 0:02:19]} 18. Be7 {[%clk 0:02:12]}  Bxh3 {[%clk 0:02:13]} 19. Bxf8 {[%clk 0:01:52]}  Rxf8 {[%clk 0:02:14]} 20. Qe3 {[%clk 0:01:42]}  Bf5 {[%clk 0:01:48]} 21. Bxf5 {[%clk 0:01:27]}  Rxf5 {[%clk 0:01:49]} 22. Ne4 {[%clk 0:01:21]}  Qxb2 {[%clk 0:01:48]} 23. Ng3 {[%clk 0:00:59]}  Rf7 {[%clk 0:01:42]} 24. Ne4 {[%clk 0:00:48]}  Rf4 {[%clk 0:01:27]} 25. Ng3 {[%clk 0:00:38]}  c4 {[%clk 0:01:03]} 26. d6 {[%clk 0:00:37]}  Rf7 {[%clk 0:00:58]} 27. Ne4 {[%clk 0:00:35]}  Nf5 {[%clk 0:00:52]} 28. Qc5 {[%clk 0:00:31]}  Qd4 {[%clk 0:00:52]} 29. Qc8+ {[%clk 0:00:29]}  Kg7 {[%clk 0:00:51]} 30. Ng5 {[%clk 0:00:22]}  Nxd6 {[%clk 0:00:51]} 31. Qe6 {[%clk 0:00:12]}  c3 {[%clk 0:00:32]} 32. Qh3 {[%clk 0:00:05]}  Kg8 {[%clk 0:00:19]} 33. Nxf7 {[%clk 0:00:03]}  Kxf7 {[%clk 0:00:19]} 34. Rc1 {[%clk 0:00:03]}  Ne4 {[%clk 0:00:18]} 35. Qxh7+ {[%clk 0:00:03]}  Kf6 {[%clk 0:00:19]} 36. Qh4+ {[%clk 0:00:03]}  Ke6 {[%clk 0:00:17]} 37. Qg4+ {[%clk 0:00:03]}  Kd5 {[%clk 0:00:17]} 38. Qf3 {[%clk 0:00:02]}  b5 {[%clk 0:00:16]} 39. g3 {[%clk 0:00:02]}  Kc4 {[%clk 0:00:13]} 40. Rd1 {[%clk 0:00:01]}  Qxf2+ {[%clk 0:00:12]} 41. Qxf2 {[%clk 0:00:02]}  Nxf2 {[%clk 0:00:13]} 42. Kxf2 {[%clk 0:00:02]}  b4 {[%clk 0:00:13]} 43. Ke3 {[%clk 0:00:02]}  b3 {[%clk 0:00:14]} 44. Rd8 {[%clk 0:00:02]}  b2 {[%clk 0:00:13]} 45. Rc8+ {[%clk 0:00:02]}  Kd5 {[%clk 0:00:13]} 46. Rb8 {[%clk 0:00:00]}  c2 {[%clk 0:00:13]} 0-1

[Event "November 21 Early 2023"]
[Site "https://www.chess.com"]
[Date "2023.11.21"]
[Round "7"]
[White "Nihal Sarin"]
[Black "Sjugirov, Sanan"]
[Result "1-0"]
[Board "7"]
[TimeControl "180+1"]
[WhiteFideId "25092340"]
[BlackFideId "4189302"]
[WhiteElo "2689"]
[BlackElo "2569"]
[WhiteTeam "IND"]
[BlackTeam "HUN"]
[WhiteClock "0:00:04"]
[BlackClock "0:00:00"]

1. d4 {[%clk 0:02:59]}  Nf6 {[%clk 0:02:59]} 2. Nf3 {[%clk 0:02:59]}  d5 {[%clk 0:02:59]} 3. c3 {[%clk 0:02:59]}  c6 {[%clk 0:02:55]} 4. Qc2 {[%clk 0:02:57]}  Qc7 {[%clk 0:02:31]} 5. g3 {[%clk 0:02:31]}  Bg4 {[%clk 0:02:28]} 6. Ne5 {[%clk 0:02:30]}  Bh5 {[%clk 0:02:21]} 7. Bf4 {[%clk 0:02:29]}  Qb6 {[%clk 0:02:12]} 8. a4 {[%clk 0:02:29]}  a5 {[%clk 0:02:09]} 9. Nd2 {[%clk 0:02:24]}  Nbd7 {[%clk 0:02:04]} 10. Nxd7 {[%clk 0:02:13]}  Nxd7 {[%clk 0:02:04]} 11. Bg2 {[%clk 0:02:13]}  e6 {[%clk 0:02:01]} 12. e4 {[%clk 0:02:12]}  Be7 {[%clk 0:01:56]} 13. O-O {[%clk 0:02:12]}  Bg6 {[%clk 0:01:52]} 14. Rfe1 {[%clk 0:02:11]}  O-O {[%clk 0:01:51]} 15. Qc1 {[%clk 0:02:04]}  Rfe8 {[%clk 0:01:47]} 16. h4 {[%clk 0:02:03]}  Nf6 {[%clk 0:01:33]} 17. exd5 {[%clk 0:01:59]}  cxd5 {[%clk 0:01:31]} 18. Bf1 {[%clk 0:01:53]}  Bd6 {[%clk 0:01:26]} 19. Bxd6 {[%clk 0:01:53]}  Qxd6 {[%clk 0:01:25]} 20. Nf3 {[%clk 0:01:54]}  Rec8 {[%clk 0:01:22]} 21. Ne5 {[%clk 0:01:52]}  Bf5 {[%clk 0:00:59]} 22. Qe3 {[%clk 0:01:38]}  h6 {[%clk 0:00:56]} 23. Bb5 {[%clk 0:01:37]}  Rc7 {[%clk 0:00:55]} 24. f3 {[%clk 0:01:34]}  Bh7 {[%clk 0:00:53]} 25. Kf2 {[%clk 0:01:33]}  Qe7 {[%clk 0:00:49]} 26. g4 {[%clk 0:01:01]}  Ne8 {[%clk 0:00:48]} 27. g5 {[%clk 0:01:02]}  Nd6 {[%clk 0:00:45]} 28. Qf4 {[%clk 0:01:02]}  h5 {[%clk 0:00:38]} 29. Bf1 {[%clk 0:00:44]}  Bf5 {[%clk 0:00:37]} 30. Nd3 {[%clk 0:00:40]}  g6 {[%clk 0:00:28]} 31. Qh2 {[%clk 0:00:30]}  Qd8 {[%clk 0:00:23]} 32. Ne5 {[%clk 0:00:29]}  Rac8 {[%clk 0:00:22]} 33. Kg3 {[%clk 0:00:28]}  b6 {[%clk 0:00:18]} 34. Qd2 {[%clk 0:00:28]}  Rb8 {[%clk 0:00:18]} 35. Ra3 {[%clk 0:00:28]}  Qe8 {[%clk 0:00:13]} 36. Rea1 {[%clk 0:00:27]}  Rcb7 {[%clk 0:00:11]} 37. Qf4 {[%clk 0:00:27]}  Rd8 {[%clk 0:00:09]} 38. Kf2 {[%clk 0:00:26]}  Rbb8 {[%clk 0:00:08]} 39. Rb3 {[%clk 0:00:23]}  Rb7 {[%clk 0:00:09]} 40. Bb5 {[%clk 0:00:19]}  Nxb5 {[%clk 0:00:05]} 41. Rxb5 {[%clk 0:00:20]}  Rc8 {[%clk 0:00:05]} 42. Ke1 {[%clk 0:00:17]}  Qd8 {[%clk 0:00:05]} 43. Kd2 {[%clk 0:00:17]}  Qc7 {[%clk 0:00:06]} 44. Ra3 {[%clk 0:00:10]}  Qb8 {[%clk 0:00:05]} 45. Qe3 {[%clk 0:00:10]}  Qc7 {[%clk 0:00:04]} 46. Rab3 {[%clk 0:00:10]}  Rbb8 {[%clk 0:00:04]} 47. Ra3 {[%clk 0:00:07]}  Rb7 {[%clk 0:00:05]} 48. Ra1 {[%clk 0:00:06]}  Rbb8 {[%clk 0:00:05]} 49. Rc1 {[%clk 0:00:07]}  Rb7 {[%clk 0:00:05]} 50. Rb3 {[%clk 0:00:07]}  Qb8 {[%clk 0:00:05]} 51. Rb5 {[%clk 0:00:06]}  Qc7 {[%clk 0:00:05]} 52. Qf4 {[%clk 0:00:07]}  Qb8 {[%clk 0:00:06]} 53. Ke3 {[%clk 0:00:08]}  Qc7 {[%clk 0:00:05]} 54. Nd3 {[%clk 0:00:07]}  Qc4 {[%clk 0:00:04]} 55. Nc5 {[%clk 0:00:04]}  bxc5 {[%clk 0:00:02]} 56. Rxb7 {[%clk 0:00:05]}  cxd4+ {[%clk 0:00:01]} 57. Qxd4 {[%clk 0:00:06]}  Qa2 {[%clk 0:00:00]} 58. Qf6 {[%clk 0:00:04]} 1-0

[Event "November 21 Early 2023"]
[Site "https://www.chess.com"]
[Date "2023.11.21"]
[Round "7"]
[White "Maghsoodloo, Parham"]
[Black "Kamsky, Gata"]
[Result "1-0"]
[Board "8"]
[TimeControl "180+1"]
[WhiteFideId "12539929"]
[BlackFideId "2000024"]
[WhiteElo "2660"]
[BlackElo "2660"]
[WhiteTeam "IRI"]
[BlackTeam "USA"]
[WhiteClock "0:00:07"]
[BlackClock "0:00:00"]

1. e4 {[%clk 0:02:59]}  c5 {[%clk 0:02:50]} 2. Nf3 {[%clk 0:02:47]}  e6 {[%clk 0:02:49]} 3. d4 {[%clk 0:02:47]}  cxd4 {[%clk 0:02:49]} 4. Nxd4 {[%clk 0:02:47]}  a6 {[%clk 0:02:49]} 5. c4 {[%clk 0:02:46]}  Nf6 {[%clk 0:02:49]} 6. Bd3 {[%clk 0:02:45]}  Nc6 {[%clk 0:02:45]} 7. Nxc6 {[%clk 0:02:44]}  dxc6 {[%clk 0:02:45]} 8. O-O {[%clk 0:02:42]}  e5 {[%clk 0:02:45]} 9. h3 {[%clk 0:02:40]}  Be6 {[%clk 0:02:43]} 10. Be3 {[%clk 0:02:41]}  Nd7 {[%clk 0:02:42]} 11. Nc3 {[%clk 0:02:33]}  Bc5 {[%clk 0:02:42]} 12. Qe2 {[%clk 0:02:27]}  O-O {[%clk 0:02:39]} 13. Rad1 {[%clk 0:02:21]}  Qe7 {[%clk 0:02:38]} 14. a3 {[%clk 0:02:19]}  b5 {[%clk 0:02:34]} 15. Rc1 {[%clk 0:02:15]}  Bxe3 {[%clk 0:02:30]} 16. Qxe3 {[%clk 0:02:15]}  b4 {[%clk 0:02:27]} 17. Na4 {[%clk 0:02:02]}  bxa3 {[%clk 0:02:24]} 18. b3 {[%clk 0:02:03]}  Qb4 {[%clk 0:02:22]} 19. Bc2 {[%clk 0:02:01]}  Rab8 {[%clk 0:02:08]} 20. Ra1 {[%clk 0:02:00]}  a5 {[%clk 0:01:47]} 21. Qc1 {[%clk 0:02:00]}  Nb6 {[%clk 0:01:43]} 22. Rxa3 {[%clk 0:01:57]}  Rfd8 {[%clk 0:01:39]} 23. Nxb6 {[%clk 0:01:57]}  Qxb6 {[%clk 0:01:33]} 24. Qe1 {[%clk 0:01:19]}  Ra8 {[%clk 0:01:30]} 25. Ra4 {[%clk 0:01:13]}  h6 {[%clk 0:01:19]} 26. Qc3 {[%clk 0:01:08]}  Qd4 {[%clk 0:01:00]} 27. Qxd4 {[%clk 0:01:02]}  Rxd4 {[%clk 0:01:00]} 28. Rfa1 {[%clk 0:01:02]}  Rd2 {[%clk 0:00:59]} 29. Rc1 {[%clk 0:01:02]}  c5 {[%clk 0:00:58]} 30. Kf1 {[%clk 0:01:02]}  Bd7 {[%clk 0:00:53]} 31. Ra3 {[%clk 0:01:00]}  Rd4 {[%clk 0:00:40]} 32. Rca1 {[%clk 0:00:56]}  a4 {[%clk 0:00:40]} 33. f3 {[%clk 0:00:47]}  Kf8 {[%clk 0:00:36]} 34. Ke1 {[%clk 0:00:45]}  Rb8 {[%clk 0:00:34]} 35. bxa4 {[%clk 0:00:37]}  Rxc4 {[%clk 0:00:34]} 36. Rb3 {[%clk 0:00:28]}  Ra8 {[%clk 0:00:28]} 37. Rb2 {[%clk 0:00:29]}  Ke7 {[%clk 0:00:21]} 38. a5 {[%clk 0:00:28]}  Rb4 {[%clk 0:00:20]} 39. Rxb4 {[%clk 0:00:23]}  cxb4 {[%clk 0:00:20]} 40. Bd3 {[%clk 0:00:24]}  Kd6 {[%clk 0:00:20]} 41. Kd2 {[%clk 0:00:22]}  Kc5 {[%clk 0:00:16]} 42. Rc1+ {[%clk 0:00:22]}  Kd6 {[%clk 0:00:17]} 43. a6 {[%clk 0:00:21]}  Be6 {[%clk 0:00:16]} 44. Ra1 {[%clk 0:00:18]}  Ra7 {[%clk 0:00:16]} 45. Kc2 {[%clk 0:00:18]}  Kc5 {[%clk 0:00:16]} 46. Ra5+ {[%clk 0:00:19]}  Kd4 {[%clk 0:00:15]} 47. Kd2 {[%clk 0:00:19]}  b3 {[%clk 0:00:12]} 48. g3 {[%clk 0:00:19]}  g5 {[%clk 0:00:10]} 49. h4 {[%clk 0:00:18]}  f6 {[%clk 0:00:10]} 50. hxg5 {[%clk 0:00:18]}  fxg5 {[%clk 0:00:09]} 51. Ra4+ {[%clk 0:00:18]}  Kc5 {[%clk 0:00:09]} 52. Kc3 {[%clk 0:00:18]}  h5 {[%clk 0:00:09]} 53. Ra5+ {[%clk 0:00:18]}  Kd6 {[%clk 0:00:09]} 54. f4 {[%clk 0:00:10]}  gxf4 {[%clk 0:00:08]} 55. gxf4 {[%clk 0:00:11]}  exf4 {[%clk 0:00:07]} 56. Rxh5 {[%clk 0:00:11]}  Rc7+ {[%clk 0:00:08]} 57. Kd4 {[%clk 0:00:09]}  f3 {[%clk 0:00:05]} 58. e5+ {[%clk 0:00:07]}  Ke7 {[%clk 0:00:05]} 59. Rh7+ {[%clk 0:00:07]}  Kd8 {[%clk 0:00:00]} 60. a7 {[%clk 0:00:07]} 1-0

[Event "November 21 Early 2023"]
[Site "https://www.chess.com"]
[Date "2023.11.21"]
[Round "7"]
[White "Le, Tuan Minh"]
[Black "Licznerski, Lukasz"]
[Result "1-0"]
[Board "9"]
[TimeControl "180+1"]
[WhiteFideId "12401153"]
[BlackFideId "1179250"]
[WhiteElo "2561"]
[BlackElo "2436"]
[WhiteTeam "VIE"]
[BlackTeam "POL"]
[WhiteClock "0:00:07"]
[BlackClock "0:00:00"]

1. d4 {[%clk 0:02:53]}  Nf6 {[%clk 0:02:59]} 2. Nf3 {[%clk 0:02:53]}  g6 {[%clk 0:03:00]} 3. Bg5 {[%clk 0:02:53]}  Bg7 {[%clk 0:03:00]} 4. Nbd2 {[%clk 0:02:53]}  d5 {[%clk 0:03:00]} 5. c3 {[%clk 0:02:53]}  O-O {[%clk 0:03:00]} 6. e3 {[%clk 0:02:54]}  b6 {[%clk 0:02:51]} 7. Bd3 {[%clk 0:02:54]}  Ba6 {[%clk 0:02:51]} 8. Bxa6 {[%clk 0:02:51]}  Nxa6 {[%clk 0:02:52]} 9. Qe2 {[%clk 0:02:52]}  Nb8 {[%clk 0:02:51]} 10. O-O {[%clk 0:02:43]}  c5 {[%clk 0:02:50]} 11. e4 {[%clk 0:02:36]}  dxe4 {[%clk 0:02:31]} 12. Nxe4 {[%clk 0:02:35]}  Nbd7 {[%clk 0:02:30]} 13. Rad1 {[%clk 0:02:35]}  Qc7 {[%clk 0:02:26]} 14. Rfe1 {[%clk 0:02:33]}  e6 {[%clk 0:02:17]} 15. dxc5 {[%clk 0:02:24]}  bxc5 {[%clk 0:01:55]} 16. Nxf6+ {[%clk 0:02:12]}  Nxf6 {[%clk 0:01:54]} 17. Ne5 {[%clk 0:02:12]}  Nd5 {[%clk 0:01:48]} 18. Nc4 {[%clk 0:02:11]}  h6 {[%clk 0:01:44]} 19. Bc1 {[%clk 0:02:10]}  Rfd8 {[%clk 0:01:39]} 20. g3 {[%clk 0:02:08]}  Rd7 {[%clk 0:01:36]} 21. Rd3 {[%clk 0:01:49]}  Rad8 {[%clk 0:01:33]} 22. Red1 {[%clk 0:01:49]}  Nb6 {[%clk 0:01:21]} 23. Bf4 {[%clk 0:01:45]}  Qc6 {[%clk 0:00:53]} 24. Ne5 {[%clk 0:01:38]}  Bxe5 {[%clk 0:00:48]} 25. Bxe5 {[%clk 0:01:39]}  Rxd3 {[%clk 0:00:26]} 26. Rxd3 {[%clk 0:00:47]}  Rd5 {[%clk 0:00:23]} 27. Rxd5 {[%clk 0:00:29]}  Qxd5 {[%clk 0:00:23]} 28. b3 {[%clk 0:00:26]}  c4 {[%clk 0:00:18]} 29. Bd4 {[%clk 0:00:23]}  cxb3 {[%clk 0:00:15]} 30. axb3 {[%clk 0:00:24]}  Nd7 {[%clk 0:00:07]} 31. b4 {[%clk 0:00:22]}  a5 {[%clk 0:00:05]} 32. bxa5 {[%clk 0:00:17]}  Qxa5 {[%clk 0:00:04]} 33. Qf3 {[%clk 0:00:14]}  Qd5 {[%clk 0:00:02]} 34. Qe2 {[%clk 0:00:14]}  e5 {[%clk 0:00:03]} 35. Be3 {[%clk 0:00:14]}  g5 {[%clk 0:00:02]} 36. c4 {[%clk 0:00:14]}  Qe6 {[%clk 0:00:02]} 37. c5 {[%clk 0:00:14]}  f5 {[%clk 0:00:02]} 38. Qb5 {[%clk 0:00:13]}  Qd5 {[%clk 0:00:01]} 39. Qa4 {[%clk 0:00:09]}  f4 {[%clk 0:00:02]} 40. c6 {[%clk 0:00:08]}  Nf6 {[%clk 0:00:00]} 41. c7 {[%clk 0:00:07]} 1-0

[Event "November 21 Early 2023"]
[Site "https://www.chess.com"]
[Date "2023.11.21"]
[Round "7"]
[White "Zakhartsov, Vladimir"]
[Black "Liang, Awonder"]
[Result "0-1"]
[Board "11"]
[TimeControl "180+1"]
[WhiteFideId "4145097"]
[BlackFideId "2056437"]
[WhiteElo "2448"]
[BlackElo "2527"]
[WhiteTeam "RUS"]
[BlackTeam "USA"]
[WhiteClock "0:00:14"]
[BlackClock "0:02:09"]

1. e4 {[%clk 0:03:00]}  b6 {[%clk 0:03:00]} 2. d4 {[%clk 0:03:00]}  Bb7 {[%clk 0:03:01]} 3. Bd3 {[%clk 0:03:00]}  e6 {[%clk 0:03:02]} 4. Nf3 {[%clk 0:02:58]}  d6 {[%clk 0:03:02]} 5. O-O {[%clk 0:02:57]}  Nd7 {[%clk 0:03:02]} 6. c3 {[%clk 0:02:53]}  g6 {[%clk 0:03:02]} 7. a4 {[%clk 0:02:51]}  a6 {[%clk 0:03:02]} 8. Qe2 {[%clk 0:02:50]}  Bg7 {[%clk 0:03:02]} 9. Bf4 {[%clk 0:02:49]}  Ne7 {[%clk 0:03:02]} 10. h4 {[%clk 0:02:47]}  h6 {[%clk 0:03:02]} 11. Nbd2 {[%clk 0:02:48]}  g5 {[%clk 0:03:03]} 12. hxg5 {[%clk 0:02:44]}  Ng6 {[%clk 0:03:03]} 13. Be3 {[%clk 0:02:44]}  hxg5 {[%clk 0:03:04]} 14. Bxg5 {[%clk 0:02:36]}  Bf6 {[%clk 0:03:04]} 15. Qe3 {[%clk 0:02:28]}  Qe7 {[%clk 0:03:03]} 16. e5 {[%clk 0:02:02]}  Bxg5 {[%clk 0:02:56]} 17. Nxg5 {[%clk 0:01:51]}  Nh4 {[%clk 0:02:56]} 18. Be4 {[%clk 0:01:43]}  Bxe4 {[%clk 0:02:54]} 19. Ndxe4 {[%clk 0:01:43]}  d5 {[%clk 0:02:54]} 20. Ng3 {[%clk 0:01:40]}  O-O-O {[%clk 0:02:53]} 21. f4 {[%clk 0:01:38]}  Rdg8 {[%clk 0:02:50]} 22. Kf2 {[%clk 0:01:37]}  f6 {[%clk 0:02:50]} 23. exf6 {[%clk 0:01:36]}  Nxf6 {[%clk 0:02:51]} 24. Qxe6+ {[%clk 0:01:27]}  Qxe6 {[%clk 0:02:51]} 25. Nxe6 {[%clk 0:01:28]}  Ng4+ {[%clk 0:02:38]} 26. Ke2 {[%clk 0:01:28]}  Ne3 {[%clk 0:02:28]} 27. Kxe3 {[%clk 0:01:09]}  Rxg3+ {[%clk 0:02:28]} 28. Kd2 {[%clk 0:01:00]}  Rxg2+ {[%clk 0:02:27]} 29. Kc1 {[%clk 0:01:00]}  Nf5 {[%clk 0:02:22]} 30. a5 {[%clk 0:00:59]}  Rhh2 {[%clk 0:02:18]} 31. Ra2 {[%clk 0:00:56]}  Ng3 {[%clk 0:02:12]} 32. Re1 {[%clk 0:00:36]}  Ne2+ {[%clk 0:02:12]} 33. Kc2 {[%clk 0:00:30]}  Nxd4+ {[%clk 0:02:10]} 34. Kd3 {[%clk 0:00:20]}  Rd2+ {[%clk 0:02:08]} 35. Ke3 {[%clk 0:00:14]}  Nc2+ {[%clk 0:02:09]} 0-1

[Event "November 21 Early 2023"]
[Site "https://www.chess.com"]
[Date "2023.11.21"]
[Round "7"]
[White "Raja Rithvik R"]
[Black "Drygalov, Sergey"]
[Result "1-0"]
[Board "13"]
[TimeControl "180+1"]
[WhiteFideId "35007394"]
[BlackFideId "24171743"]
[WhiteElo "2395"]
[BlackElo "2502"]
[WhiteTeam "IND"]
[BlackTeam "RUS"]
[WhiteClock "0:00:09"]
[BlackClock "0:00:01"]

1. Nf3 {[%clk 0:02:34]}  d5 {[%clk 0:02:59]} 2. c4 {[%clk 0:02:35]}  d4 {[%clk 0:02:58]} 3. b4 {[%clk 0:02:28]}  f6 {[%clk 0:02:58]} 4. e3 {[%clk 0:02:24]}  e5 {[%clk 0:02:58]} 5. a3 {[%clk 0:02:12]}  c5 {[%clk 0:02:56]} 6. exd4 {[%clk 0:01:54]}  cxd4 {[%clk 0:02:50]} 7. Bd3 {[%clk 0:01:47]}  Ne7 {[%clk 0:02:48]} 8. O-O {[%clk 0:01:46]}  Ng6 {[%clk 0:02:48]} 9. Re1 {[%clk 0:01:40]}  Be7 {[%clk 0:02:46]} 10. Bb2 {[%clk 0:01:39]}  O-O {[%clk 0:02:46]} 11. Be4 {[%clk 0:01:40]}  Nc6 {[%clk 0:02:42]} 12. d3 {[%clk 0:01:37]}  Nf4 {[%clk 0:02:30]} 13. g3 {[%clk 0:01:34]}  Nh3+ {[%clk 0:02:29]} 14. Kg2 {[%clk 0:01:34]}  Bg4 {[%clk 0:02:29]} 15. Qb3 {[%clk 0:01:22]}  Qd7 {[%clk 0:02:24]} 16. Nbd2 {[%clk 0:01:20]}  Kh8 {[%clk 0:02:24]} 17. Qa4 {[%clk 0:01:12]}  a6 {[%clk 0:02:21]} 18. c5 {[%clk 0:01:10]}  Ng5 {[%clk 0:01:59]} 19. Nxg5 {[%clk 0:01:07]}  fxg5 {[%clk 0:02:00]} 20. Nc4 {[%clk 0:01:05]}  Bh3+ {[%clk 0:01:55]} 21. Kg1 {[%clk 0:01:05]}  Rae8 {[%clk 0:01:12]} 22. Qc2 {[%clk 0:00:49]}  Rf6 {[%clk 0:00:54]} 23. Qe2 {[%clk 0:00:45]}  Ref8 {[%clk 0:00:50]} 24. f3 {[%clk 0:00:38]}  Re6 {[%clk 0:00:42]} 25. g4 {[%clk 0:00:37]}  Bd8 {[%clk 0:00:34]} 26. Kh1 {[%clk 0:00:34]}  Bc7 {[%clk 0:00:31]} 27. Rg1 {[%clk 0:00:34]}  Rh6 {[%clk 0:00:30]} 28. Rg3 {[%clk 0:00:32]}  Rh4 {[%clk 0:00:30]} 29. Bc1 {[%clk 0:00:30]}  Qe7 {[%clk 0:00:28]} 30. Bd2 {[%clk 0:00:29]}  Qf6 {[%clk 0:00:23]} 31. Re1 {[%clk 0:00:29]}  h5 {[%clk 0:00:22]} 32. gxh5 {[%clk 0:00:27]}  Rxh5 {[%clk 0:00:22]} 33. Bxg5 {[%clk 0:00:26]}  Qf7 {[%clk 0:00:18]} 34. f4 {[%clk 0:00:25]}  exf4 {[%clk 0:00:15]} 35. Rxh3 {[%clk 0:00:19]}  Rxh3 {[%clk 0:00:14]} 36. Qg4 {[%clk 0:00:16]}  Qh5 {[%clk 0:00:14]} 37. Qxh5+ {[%clk 0:00:11]}  Rxh5 {[%clk 0:00:15]} 38. h4 {[%clk 0:00:11]}  f3 {[%clk 0:00:15]} 39. Rf1 {[%clk 0:00:11]}  Bd8 {[%clk 0:00:06]} 40. Rxf3 {[%clk 0:00:08]}  Rxf3 {[%clk 0:00:04]} 41. Bxf3 {[%clk 0:00:09]}  Rh7 {[%clk 0:00:05]} 42. Be4 {[%clk 0:00:07]}  g6 {[%clk 0:00:04]} 43. Bxg6 {[%clk 0:00:06]}  Rg7 {[%clk 0:00:05]} 44. Be4 {[%clk 0:00:05]}  Bxg5 {[%clk 0:00:04]} 45. hxg5 {[%clk 0:00:06]}  Rxg5 {[%clk 0:00:05]} 46. Nd6 {[%clk 0:00:07]}  Rg7 {[%clk 0:00:02]} 47. Nxb7 {[%clk 0:00:08]}  Rxb7 {[%clk 0:00:02]} 48. Bxc6 {[%clk 0:00:08]}  Rg7 {[%clk 0:00:02]} 49. Be4 {[%clk 0:00:07]}  Kg8 {[%clk 0:00:02]} 50. a4 {[%clk 0:00:08]}  Rg5 {[%clk 0:00:01]} 51. c6 {[%clk 0:00:08]}  Kf8 {[%clk 0:00:01]} 52. c7 {[%clk 0:00:08]}  Ke7 {[%clk 0:00:01]} 53. c8=Q {[%clk 0:00:09]} 1-0